[Event "Titled Tuesday Blitz March 14 Early 2023"]
[White "Weetik, Vjacheslav"]
[Black "Manukian, Artak"]
[WhiteFideId "4153472"]
[BlackFideId "13301373"]
[WhiteElo "2469"]
[BlackElo "2130"]
[Result "1-0"]
[Round "06"]
[TimeControl "180+2"]
[Date "2023.03.14"]
[WhiteClock "0:00:52"]
[BlackClock "0:01:49"]

1. d4 {[%clk 0:02:58]}  d5 {[%clk 0:02:59]} 2. Bf4 {[%clk 0:02:58]}  Nf6 {[%clk 0:02:57]} 3. e3 {[%clk 0:02:58]}  Bg4 {[%clk 0:02:55]} 4. f3 {[%clk 0:02:57]}  Bh5 {[%clk 0:02:55]} 5. Nc3 {[%clk 0:02:56]}  e6 {[%clk 0:02:50]} 6. Nge2 {[%clk 0:02:53]}  a6 {[%clk 0:02:46]} 7. g4 {[%clk 0:02:47]}  Bg6 {[%clk 0:02:43]} 8. h4 {[%clk 0:02:47]}  h5 {[%clk 0:02:41]} 9. g5 {[%clk 0:02:46]}  Nfd7 {[%clk 0:02:37]} 10. Bh2 {[%clk 0:02:26]}  Bd6 {[%clk 0:02:27]} 11. Bxd6 {[%clk 0:02:24]}  cxd6 {[%clk 0:02:27]} 12. Nf4 {[%clk 0:02:25]}  Bf5 {[%clk 0:02:17]} 13. e4 {[%clk 0:02:14]}  dxe4 {[%clk 0:02:15]} 14. fxe4 {[%clk 0:02:15]}  Bg4 {[%clk 0:02:15]} 15. Be2 {[%clk 0:02:16]}  Bxe2 {[%clk 0:02:15]} 16. Qxe2 {[%clk 0:02:13]}  g6 {[%clk 0:02:11]} 17. O-O-O {[%clk 0:02:02]}  O-O {[%clk 0:02:10]} 18. Nxh5 {[%clk 0:01:36]}  gxh5 {[%clk 0:02:09]} 19. Qxh5 {[%clk 0:01:36]}  Nc6 {[%clk 0:02:06]} 20. Rhg1 {[%clk 0:01:12]}  Ne7 {[%clk 0:01:55]} 21. g6 {[%clk 0:01:11]}  fxg6 {[%clk 0:01:50]} 22. Rxg6+ {[%clk 0:01:10]}  Nxg6 {[%clk 0:01:50]} 23. Qxg6+ {[%clk 0:01:10]}  Kh8 {[%clk 0:01:50]} 24. Qh6+ {[%clk 0:00:56]}  Kg8 {[%clk 0:01:49]} 25. Rg1+ {[%clk 0:00:54]}  Kf7 {[%clk 0:01:49]} 26. Rg7+ {[%clk 0:00:52]} 1-0


[Site "https://www.chess.com"]

[Event "Titled Tuesday Blitz March 14 Early 2023"]
[White "Vlassov, Nikolai"]
[Black "Bas Mas, Jose Joaquin"]
[WhiteFideId "4103360"]
[BlackFideId "22219064"]
[WhiteElo "2324"]
[BlackElo "2233"]
[Result "1-0"]
[Round "06"]
[TimeControl "180+2"]
[Date "2023.03.14"]
[WhiteClock "0:00:07"]
[BlackClock "0:00:25"]

1. e4 {[%clk 0:03:00]}  e6 {[%clk 0:03:00]} 2. c4 {[%clk 0:03:00]}  d5 {[%clk 0:02:59]} 3. cxd5 {[%clk 0:03:00]}  exd5 {[%clk 0:02:59]} 4. Qb3 {[%clk 0:03:01]}  dxe4 {[%clk 0:02:51]} 5. Bc4 {[%clk 0:03:00]}  Qf6 {[%clk 0:02:46]} 6. Nc3 {[%clk 0:02:59]}  Nc6 {[%clk 0:02:29]} 7. Nge2 {[%clk 0:01:57]}  Rb8 {[%clk 0:01:55]} 8. Nxe4 {[%clk 0:01:55]}  Qe7 {[%clk 0:01:53]} 9. d3 {[%clk 0:01:52]}  Qb4+ {[%clk 0:01:26]} 10. N2c3 {[%clk 0:01:50]}  Qxb3 {[%clk 0:01:24]} 11. Bxb3 {[%clk 0:01:44]}  Be7 {[%clk 0:01:17]} 12. Nd5 {[%clk 0:01:40]}  Bd8 {[%clk 0:01:16]} 13. Bf4 {[%clk 0:01:40]}  Nge7 {[%clk 0:01:13]} 14. Bxc7 {[%clk 0:01:25]}  Bxc7 {[%clk 0:01:10]} 15. Nxc7+ {[%clk 0:01:24]}  Kd7 {[%clk 0:01:11]} 16. Nb5 {[%clk 0:01:22]}  b6 {[%clk 0:01:02]} 17. Bxf7 {[%clk 0:01:14]}  Rf8 {[%clk 0:01:00]} 18. Bb3 {[%clk 0:01:10]}  Ba6 {[%clk 0:00:55]} 19. Ba4 {[%clk 0:01:05]}  Rf5 {[%clk 0:00:47]} 20. Nd4 {[%clk 0:00:54]}  Rd5 {[%clk 0:00:44]} 21. Nxc6 {[%clk 0:00:51]}  Nxc6 {[%clk 0:00:45]} 22. O-O-O {[%clk 0:00:47]}  Bb5 {[%clk 0:00:45]} 23. Bxb5 {[%clk 0:00:46]}  Rxb5 {[%clk 0:00:46]} 24. Nc3 {[%clk 0:00:45]}  Rg5 {[%clk 0:00:45]} 25. g3 {[%clk 0:00:45]}  Nd4 {[%clk 0:00:43]} 26. f4 {[%clk 0:00:44]}  Rc5 {[%clk 0:00:42]} 27. Kb1 {[%clk 0:00:42]}  b5 {[%clk 0:00:43]} 28. Rhe1 {[%clk 0:00:41]}  Rbc8 {[%clk 0:00:41]} 29. Rc1 {[%clk 0:00:28]}  a6 {[%clk 0:00:36]} 30. Ne4 {[%clk 0:00:17]}  Rxc1+ {[%clk 0:00:36]} 31. Rxc1 {[%clk 0:00:18]}  Rxc1+ {[%clk 0:00:36]} 32. Kxc1 {[%clk 0:00:19]}  Nf3 {[%clk 0:00:37]} 33. h4 {[%clk 0:00:16]}  Nd4 {[%clk 0:00:37]} 34. Kd2 {[%clk 0:00:15]}  Kc6 {[%clk 0:00:38]} 35. h5 {[%clk 0:00:13]}  h6 {[%clk 0:00:37]} 36. Ke3 {[%clk 0:00:12]}  Nc2+ {[%clk 0:00:37]} 37. Kf3 {[%clk 0:00:12]}  Nd4+ {[%clk 0:00:37]} 38. Kf2 {[%clk 0:00:11]}  a5 {[%clk 0:00:38]} 39. g4 {[%clk 0:00:12]}  Kd5 {[%clk 0:00:37]} 40. g5 {[%clk 0:00:11]}  Nf5 {[%clk 0:00:34]} 41. Kf3 {[%clk 0:00:10]}  Kd4 {[%clk 0:00:34]} 42. Nf2 {[%clk 0:00:09]}  a4 {[%clk 0:00:33]} 43. a3 {[%clk 0:00:08]}  Ne7 {[%clk 0:00:28]} 44. Kg4 {[%clk 0:00:08]}  Nd5 {[%clk 0:00:29]} 45. gxh6 {[%clk 0:00:08]}  gxh6 {[%clk 0:00:28]} 46. f5 {[%clk 0:00:08]}  Ne3+ {[%clk 0:00:27]} 47. Kf4 {[%clk 0:00:08]}  Nc2 {[%clk 0:00:26]} 48. f6 {[%clk 0:00:08]}  Nxa3 {[%clk 0:00:26]} 49. f7 {[%clk 0:00:07]}  Nc4 {[%clk 0:00:23]} 50. dxc4 {[%clk 0:00:07]}  b4 {[%clk 0:00:24]} 51. f8=Q {[%clk 0:00:07]}  a3 {[%clk 0:00:25]} 52. Qxb4 {[%clk 0:00:07]} 1-0


[Site "https://www.chess.com"]

[Event "Titled Tuesday Blitz March 14 Early 2023"]
[White "Postny, Evgeny"]
[Black "Matutururu, Maxman"]
[WhiteFideId "2804344"]
[BlackFideId "11004487"]
[WhiteElo "2509"]
[BlackElo "2450"]
[Result "1-0"]
[Round "06"]
[TimeControl "180+2"]
[Date "2023.03.14"]
[WhiteClock "0:02:36"]
[BlackClock "0:02:46"]

1. e4 {[%clk 0:02:57]}  c5 {[%clk 0:03:00]} 2. Nf3 {[%clk 0:02:55]}  d6 {[%clk 0:03:00]} 3. d4 {[%clk 0:02:55]}  cxd4 {[%clk 0:03:01]} 4. Nxd4 {[%clk 0:02:56]}  Nf6 {[%clk 0:03:01]} 5. Nc3 {[%clk 0:02:56]}  a6 {[%clk 0:03:02]} 6. Bg5 {[%clk 0:02:55]}  e6 {[%clk 0:03:00]} 7. Qd3 {[%clk 0:02:54]}  Be7 {[%clk 0:02:59]} 8. O-O-O {[%clk 0:02:53]}  Nbd7 {[%clk 0:02:58]} 9. f4 {[%clk 0:02:48]}  O-O {[%clk 0:02:57]} 10. h4 {[%clk 0:02:45]}  Qa5 {[%clk 0:02:47]} 11. g4 {[%clk 0:02:42]}  b5 {[%clk 0:02:46]} 12. Nc6 {[%clk 0:02:36]} 1-0


[Site "https://www.chess.com"]

[Event "Titled Tuesday Blitz March 14 Early 2023"]
[White "Starozhilov, Leonid"]
[Black "Shubenkova, Veronika"]
[WhiteFideId "14106752"]
[BlackFideId "44124040"]
[WhiteElo "2402"]
[BlackElo "2027"]
[Result "1-0"]
[Round "06"]
[TimeControl "180+2"]
[Date "2023.03.14"]
[WhiteClock "0:00:19"]
[BlackClock "0:01:21"]

1. e4 {[%clk 0:03:00]}  e6 {[%clk 0:02:59]} 2. d4 {[%clk 0:03:00]}  d5 {[%clk 0:03:00]} 3. Nc3 {[%clk 0:03:01]}  Nf6 {[%clk 0:03:00]} 4. Bg5 {[%clk 0:03:01]}  Be7 {[%clk 0:03:00]} 5. e5 {[%clk 0:02:59]}  Nfd7 {[%clk 0:03:00]} 6. h4 {[%clk 0:03:00]}  h6 {[%clk 0:03:00]} 7. Bxe7 {[%clk 0:03:00]}  Qxe7 {[%clk 0:03:01]} 8. f4 {[%clk 0:03:01]}  g6 {[%clk 0:03:00]} 9. Nf3 {[%clk 0:03:00]}  a6 {[%clk 0:03:00]} 10. h5 {[%clk 0:02:54]}  Nf8 {[%clk 0:02:58]} 11. hxg6 {[%clk 0:02:53]}  Nxg6 {[%clk 0:02:59]} 12. Qd2 {[%clk 0:02:53]}  c5 {[%clk 0:02:59]} 13. Bd3 {[%clk 0:02:40]}  cxd4 {[%clk 0:02:57]} 14. Nxd4 {[%clk 0:02:39]}  Nf8 {[%clk 0:02:50]} 15. f5 {[%clk 0:02:32]}  Qc7 {[%clk 0:02:45]} 16. O-O-O {[%clk 0:02:31]}  Nc6 {[%clk 0:02:43]} 17. Nxc6 {[%clk 0:02:08]}  Qxc6 {[%clk 0:02:42]} 18. Rxh6 {[%clk 0:02:06]}  Rxh6 {[%clk 0:02:41]} 19. Qxh6 {[%clk 0:02:07]}  Bd7 {[%clk 0:02:41]} 20. Qf6 {[%clk 0:01:57]}  exf5 {[%clk 0:02:36]} 21. Bxf5 {[%clk 0:01:09]}  Qxf6 {[%clk 0:02:33]} 22. Bxd7+ {[%clk 0:01:08]}  Nxd7 {[%clk 0:02:33]} 23. exf6 {[%clk 0:01:09]}  Nxf6 {[%clk 0:02:33]} 24. Nxd5 {[%clk 0:01:10]}  Nxd5 {[%clk 0:02:33]} 25. Rxd5 {[%clk 0:01:11]}  Ke7 {[%clk 0:02:33]} 26. g4 {[%clk 0:01:03]}  Rg8 {[%clk 0:02:31]} 27. g5 {[%clk 0:01:01]}  Rg6 {[%clk 0:02:31]} 28. c3 {[%clk 0:00:48]}  Ke6 {[%clk 0:02:30]} 29. Rc5 {[%clk 0:00:47]}  Kd6 {[%clk 0:02:29]} 30. Rf5 {[%clk 0:00:45]}  Ke6 {[%clk 0:02:29]} 31. Ra5 {[%clk 0:00:45]}  Rg8 {[%clk 0:02:21]} 32. Kc2 {[%clk 0:00:42]}  Rd8 {[%clk 0:02:20]} 33. c4 {[%clk 0:00:38]}  Ke7 {[%clk 0:02:17]} 34. Re5+ {[%clk 0:00:36]}  Kf8 {[%clk 0:02:17]} 35. b4 {[%clk 0:00:33]}  Kg7 {[%clk 0:02:16]} 36. c5 {[%clk 0:00:33]}  Rd4 {[%clk 0:02:13]} 37. Kc3 {[%clk 0:00:33]}  Rg4 {[%clk 0:02:12]} 38. Re7 {[%clk 0:00:31]}  a5 {[%clk 0:02:07]} 39. Rxb7 {[%clk 0:00:25]}  axb4+ {[%clk 0:02:07]} 40. Rxb4 {[%clk 0:00:26]}  Rxg5 {[%clk 0:02:08]} 41. c6 {[%clk 0:00:25]}  Rg3+ {[%clk 0:02:00]} 42. Kb2 {[%clk 0:00:24]}  Rg5 {[%clk 0:01:50]} 43. Rc4 {[%clk 0:00:24]}  Rb5+ {[%clk 0:01:49]} 44. Kc3 {[%clk 0:00:25]}  Rb8 {[%clk 0:01:49]} 45. c7 {[%clk 0:00:18]}  Rc8 {[%clk 0:01:49]} 46. Kd4 {[%clk 0:00:18]}  Kf6 {[%clk 0:01:49]} 47. Kd5 {[%clk 0:00:19]}  Ke7 {[%clk 0:01:49]} 48. Kc6 {[%clk 0:00:20]}  f5 {[%clk 0:01:21]} 49. Kb7 {[%clk 0:00:19]} 1-0


[Site "https://www.chess.com"]

[Event "Titled Tuesday Blitz March 14 Early 2023"]
[White "polandchessplayer"]
[Black "Jiang, Andrew"]
[BlackFideId "30953510"]
[WhiteElo "2592"]
[BlackElo "1883"]
[Result "1-0"]
[Round "06"]
[TimeControl "180+2"]
[Date "2023.03.14"]
[WhiteClock "0:00:34"]
[BlackClock "0:00:17"]

1. d4 {[%clk 0:03:00]}  d5 {[%clk 0:02:59]} 2. c4 {[%clk 0:03:00]}  e6 {[%clk 0:02:57]} 3. Nc3 {[%clk 0:03:00]}  Nf6 {[%clk 0:02:54]} 4. cxd5 {[%clk 0:02:58]}  exd5 {[%clk 0:02:55]} 5. Bg5 {[%clk 0:02:58]}  Bb4 {[%clk 0:02:54]} 6. e3 {[%clk 0:02:56]}  h6 {[%clk 0:02:54]} 7. Bh4 {[%clk 0:02:54]}  g5 {[%clk 0:02:54]} 8. Bg3 {[%clk 0:02:54]}  Ne4 {[%clk 0:02:54]} 9. Qc2 {[%clk 0:02:54]}  h5 {[%clk 0:02:53]} 10. Bd3 {[%clk 0:02:50]}  h4 {[%clk 0:02:49]} 11. Bxe4 {[%clk 0:02:34]}  hxg3 {[%clk 0:02:38]} 12. Bd3 {[%clk 0:02:28]}  gxh2 {[%clk 0:02:34]} 13. Ne2 {[%clk 0:02:28]}  Nc6 {[%clk 0:02:31]} 14. O-O-O {[%clk 0:02:27]}  Be6 {[%clk 0:02:28]} 15. a3 {[%clk 0:02:27]}  Bxc3 {[%clk 0:02:26]} 16. Nxc3 {[%clk 0:02:26]}  Qf6 {[%clk 0:02:25]} 17. Qe2 {[%clk 0:02:11]}  O-O-O {[%clk 0:02:21]} 18. b4 {[%clk 0:02:01]}  Rde8 {[%clk 0:02:16]} 19. Kb2 {[%clk 0:02:01]}  Bf5 {[%clk 0:02:07]} 20. Nxd5 {[%clk 0:01:55]}  Qe6 {[%clk 0:01:59]} 21. Nc3 {[%clk 0:01:47]}  Bxd3 {[%clk 0:01:52]} 22. Qxd3 {[%clk 0:01:47]}  Qf6 {[%clk 0:01:52]} 23. Rd2 {[%clk 0:01:43]}  g4 {[%clk 0:01:48]} 24. Nd5 {[%clk 0:01:35]}  Qd6 {[%clk 0:01:46]} 25. Nf4 {[%clk 0:01:32]}  Rh6 {[%clk 0:01:34]} 26. Rc2 {[%clk 0:01:23]}  Rf6 {[%clk 0:01:27]} 27. g3 {[%clk 0:01:06]}  Rh8 {[%clk 0:01:22]} 28. Rc5 {[%clk 0:01:01]}  Ne7 {[%clk 0:00:40]} 29. Qe4 {[%clk 0:00:52]}  Nf5 {[%clk 0:00:24]} 30. Rhc1 {[%clk 0:00:50]}  Kb8 {[%clk 0:00:19]} 31. Rxf5 {[%clk 0:00:44]}  Rxf5 {[%clk 0:00:19]} 32. Qxf5 {[%clk 0:00:45]}  h1=Q {[%clk 0:00:19]} 33. Rxh1 {[%clk 0:00:45]}  Rxh1 {[%clk 0:00:20]} 34. Qxf7 {[%clk 0:00:46]}  a6 {[%clk 0:00:19]} 35. Qe8+ {[%clk 0:00:40]}  Ka7 {[%clk 0:00:19]} 36. Qe5 {[%clk 0:00:40]}  Qc6 {[%clk 0:00:19]} 37. Qc5+ {[%clk 0:00:40]}  Qxc5 {[%clk 0:00:19]} 38. bxc5 {[%clk 0:00:41]}  Rh2 {[%clk 0:00:20]} 39. Nd3 {[%clk 0:00:41]}  b6 {[%clk 0:00:20]} 40. Kc3 {[%clk 0:00:37]}  Kb7 {[%clk 0:00:20]} 41. cxb6 {[%clk 0:00:35]}  cxb6 {[%clk 0:00:20]} 42. e4 {[%clk 0:00:36]}  Kc6 {[%clk 0:00:19]} 43. d5+ {[%clk 0:00:37]}  Kd6 {[%clk 0:00:19]} 44. Kd4 {[%clk 0:00:37]}  Rh1 {[%clk 0:00:18]} 45. e5+ {[%clk 0:00:38]}  Kd7 {[%clk 0:00:18]} 46. d6 {[%clk 0:00:35]}  Ra1 {[%clk 0:00:17]} 47. Kd5 {[%clk 0:00:33]}  Rxa3 {[%clk 0:00:18]} 48. e6+ {[%clk 0:00:33]}  Kd8 {[%clk 0:00:17]} 49. Ne5 {[%clk 0:00:33]}  Ra5+ {[%clk 0:00:17]} 50. Ke4 {[%clk 0:00:34]}  Ke8 {[%clk 0:00:17]} 51. d7+ {[%clk 0:00:33]}  Ke7 {[%clk 0:00:17]} 52. Nc6+ {[%clk 0:00:34]} 1-0


[Site "https://www.chess.com"]

[Event "Titled Tuesday Blitz March 14 Early 2023"]
[White "Zarnicki, Pablo"]
[Black "Bochnicka, Vladimir"]
[WhiteFideId "100137"]
[BlackFideId "14943450"]
[WhiteElo "2468"]
[BlackElo "2094"]
[Result "1-0"]
[Round "06"]
[TimeControl "180+2"]
[Date "2023.03.14"]
[WhiteClock "0:00:17"]
[BlackClock "0:02:11"]

1. e4 {[%clk 0:00:16]}  c5 {[%clk 0:02:59]} 2. Nf3 {[%clk 0:00:17]}  Nc6 {[%clk 0:02:59]} 3. d4 {[%clk 0:00:17]}  cxd4 {[%clk 0:03:00]} 4. Nxd4 {[%clk 0:00:18]}  e5 {[%clk 0:03:00]} 5. Nb5 {[%clk 0:00:18]}  d6 {[%clk 0:03:01]} 6. c4 {[%clk 0:00:19]}  Be7 {[%clk 0:03:00]} 7. N5c3 {[%clk 0:00:19]}  f5 {[%clk 0:03:00]} 8. Be2 {[%clk 0:00:20]}  f4 {[%clk 0:03:00]} 9. Bg4 {[%clk 0:00:20]}  Nf6 {[%clk 0:02:59]} 10. Bxc8 {[%clk 0:00:20]}  Qxc8 {[%clk 0:03:00]} 11. O-O {[%clk 0:00:20]}  O-O {[%clk 0:03:00]} 12. f3 {[%clk 0:00:20]}  Qe6 {[%clk 0:03:00]} 13. Nd5 {[%clk 0:00:20]}  Bd8 {[%clk 0:02:57]} 14. Nbc3 {[%clk 0:00:20]}  Kh8 {[%clk 0:02:55]} 15. Qe2 {[%clk 0:00:20]}  Nd4 {[%clk 0:02:53]} 16. Qf2 {[%clk 0:00:20]}  Rc8 {[%clk 0:02:52]} 17. b3 {[%clk 0:00:20]}  b5 {[%clk 0:02:50]} 18. Nxf6 {[%clk 0:00:18]}  Rxf6 {[%clk 0:02:46]} 19. Nd5 {[%clk 0:00:19]}  Rh6 {[%clk 0:02:42]} 20. Bb2 {[%clk 0:00:19]}  Rxh2 {[%clk 0:02:22]} 21. Kxh2 {[%clk 0:00:18]}  Qh6+ {[%clk 0:02:22]} 22. Kg1 {[%clk 0:00:18]}  Bh4 {[%clk 0:02:22]} 23. Bxd4 {[%clk 0:00:17]}  exd4 {[%clk 0:02:15]} 24. Qxd4 {[%clk 0:00:17]}  Bg3 {[%clk 0:02:14]} 25. Rfc1 {[%clk 0:00:17]}  Qh1+ {[%clk 0:02:11]} 26. Kxh1 {[%clk 0:00:17]} 1-0


[Site "https://www.chess.com"]

[Event "Titled Tuesday Blitz March 14 Early 2023"]
[White "Tokhirjonova, Gulrukhbegim"]
[Black "Kraus, Tomas"]
[WhiteFideId "14203626"]
[BlackFideId "331708"]
[WhiteElo "2268"]
[BlackElo "2389"]
[Result "1-0"]
[Round "06"]
[TimeControl "180+2"]
[Date "2023.03.14"]
[WhiteClock "0:00:13"]
[BlackClock "0:00:03"]

1. Nf3 {[%clk 0:02:58]}  d5 {[%clk 0:02:59]} 2. g3 {[%clk 0:02:54]}  Nf6 {[%clk 0:02:58]} 3. Bg2 {[%clk 0:02:52]}  Nbd7 {[%clk 0:02:56]} 4. d4 {[%clk 0:02:49]}  Nb6 {[%clk 0:02:56]} 5. O-O {[%clk 0:02:43]}  c6 {[%clk 0:02:52]} 6. Bf4 {[%clk 0:02:39]}  Bf5 {[%clk 0:02:49]} 7. b3 {[%clk 0:02:38]}  e6 {[%clk 0:02:48]} 8. Ne5 {[%clk 0:02:36]}  Bd6 {[%clk 0:02:46]} 9. h3 {[%clk 0:02:36]}  O-O {[%clk 0:02:43]} 10. g4 {[%clk 0:02:37]}  Bg6 {[%clk 0:02:38]} 11. Nd2 {[%clk 0:02:37]}  Bxe5 {[%clk 0:02:22]} 12. Bxe5 {[%clk 0:02:35]}  Ne4 {[%clk 0:02:21]} 13. Nxe4 {[%clk 0:02:31]}  dxe4 {[%clk 0:02:21]} 14. c4 {[%clk 0:02:30]}  Nd7 {[%clk 0:02:18]} 15. Bg3 {[%clk 0:02:28]}  f5 {[%clk 0:02:16]} 16. Qd2 {[%clk 0:02:27]}  Qf6 {[%clk 0:02:12]} 17. Qf4 {[%clk 0:02:17]}  Rae8 {[%clk 0:02:07]} 18. Rad1 {[%clk 0:02:12]}  e5 {[%clk 0:01:44]} 19. dxe5 {[%clk 0:02:11]}  Nxe5 {[%clk 0:01:44]} 20. g5 {[%clk 0:02:02]}  Qf7 {[%clk 0:01:40]} 21. Rd6 {[%clk 0:01:57]}  Bh5 {[%clk 0:01:36]} 22. Qh4 {[%clk 0:01:46]}  Bxe2 {[%clk 0:01:26]} 23. Re1 {[%clk 0:01:43]}  Ng6 {[%clk 0:01:15]} 24. Rxg6 {[%clk 0:01:42]}  Qxg6 {[%clk 0:01:13]} 25. Rxe2 {[%clk 0:01:41]}  Rd8 {[%clk 0:01:06]} 26. Qf4 {[%clk 0:01:37]}  Rd1+ {[%clk 0:01:04]} 27. Kh2 {[%clk 0:01:37]}  Rd3 {[%clk 0:01:02]} 28. Re3 {[%clk 0:01:33]}  Rd1 {[%clk 0:00:51]} 29. h4 {[%clk 0:01:26]}  Rfd8 {[%clk 0:00:45]} 30. Re2 {[%clk 0:01:19]}  R1d3 {[%clk 0:00:44]} 31. f3 {[%clk 0:01:13]}  exf3 {[%clk 0:00:41]} 32. Bxf3 {[%clk 0:01:12]}  Qf7 {[%clk 0:00:35]} 33. Bg2 {[%clk 0:01:07]}  g6 {[%clk 0:00:35]} 34. Qe5 {[%clk 0:01:03]}  R3d7 {[%clk 0:00:12]} 35. a4 {[%clk 0:00:57]}  a6 {[%clk 0:00:09]} 36. b4 {[%clk 0:00:57]}  Rd4 {[%clk 0:00:08]} 37. Rc2 {[%clk 0:00:39]}  Rxc4 {[%clk 0:00:07]} 38. Rxc4 {[%clk 0:00:38]}  Qxc4 {[%clk 0:00:08]} 39. Qe7 {[%clk 0:00:37]}  Rf8 {[%clk 0:00:06]} 40. a5 {[%clk 0:00:22]}  f4 {[%clk 0:00:06]} 41. Bf2 {[%clk 0:00:20]}  f3 {[%clk 0:00:07]} 42. Bh3 {[%clk 0:00:20]}  Qf4+ {[%clk 0:00:07]} 43. Kg1 {[%clk 0:00:17]}  Qc1+ {[%clk 0:00:07]} 44. Kh2 {[%clk 0:00:17]}  Qf4+ {[%clk 0:00:07]} 45. Kg1 {[%clk 0:00:16]}  Qc1+ {[%clk 0:00:07]} 46. Bf1 {[%clk 0:00:14]}  Qf4 {[%clk 0:00:06]} 47. Qe6+ {[%clk 0:00:13]}  Qf7 {[%clk 0:00:06]} 48. Qe4 {[%clk 0:00:13]}  Qf5 {[%clk 0:00:05]} 49. Bc4+ {[%clk 0:00:13]}  Kg7 {[%clk 0:00:04]} 50. Bd4+ {[%clk 0:00:13]}  Rf6 {[%clk 0:00:03]} 51. Bxf6+ {[%clk 0:00:13]}  Kf8 {[%clk 0:00:03]} 52. Qe7# {[%clk 0:00:13]} 1-0


[Site "https://www.chess.com"]

[Event "Titled Tuesday Blitz March 14 Early 2023"]
[White "ArtemDyachuk"]
[Black "Manukyan, Sargis V."]
[BlackFideId "13303465"]
[WhiteElo "2384"]
[BlackElo "2236"]
[Result "1/2-1/2"]
[Round "06"]
[TimeControl "180+2"]
[Date "2023.03.14"]
[WhiteClock "0:01:06"]
[BlackClock "0:01:06"]

1. Nf3 {[%clk 0:03:00]}  Nf6 {[%clk 0:02:59]} 2. c4 {[%clk 0:03:00]}  c5 {[%clk 0:02:56]} 3. e3 {[%clk 0:02:56]}  g6 {[%clk 0:02:55]} 4. b3 {[%clk 0:02:56]}  Bg7 {[%clk 0:02:55]} 5. Bb2 {[%clk 0:02:56]}  O-O {[%clk 0:02:56]} 6. Be2 {[%clk 0:02:56]}  a6 {[%clk 0:02:56]} 7. O-O {[%clk 0:02:56]}  Nc6 {[%clk 0:02:57]} 8. Qc1 {[%clk 0:02:47]}  Rb8 {[%clk 0:02:56]} 9. Rd1 {[%clk 0:02:47]}  d6 {[%clk 0:02:49]} 10. d4 {[%clk 0:02:46]}  Qc7 {[%clk 0:02:45]} 11. d5 {[%clk 0:02:45]}  Na5 {[%clk 0:02:43]} 12. Nc3 {[%clk 0:02:38]}  Bd7 {[%clk 0:02:38]} 13. e4 {[%clk 0:02:36]}  Ng4 {[%clk 0:02:33]} 14. h3 {[%clk 0:02:28]}  Ne5 {[%clk 0:02:32]} 15. Nxe5 {[%clk 0:02:28]}  Bxe5 {[%clk 0:02:32]} 16. Qh6 {[%clk 0:02:28]}  b5 {[%clk 0:02:25]} 17. f4 {[%clk 0:02:27]}  Bd4+ {[%clk 0:02:25]} 18. Kh1 {[%clk 0:02:18]}  bxc4 {[%clk 0:02:23]} 19. e5 {[%clk 0:02:17]}  cxb3 {[%clk 0:02:21]} 20. Ne4 {[%clk 0:02:10]}  f6 {[%clk 0:02:07]} 21. Bxd4 {[%clk 0:02:06]}  cxd4 {[%clk 0:02:06]} 22. e6 {[%clk 0:02:06]}  Bb5 {[%clk 0:02:03]} 23. Bxb5 {[%clk 0:02:03]}  Rxb5 {[%clk 0:02:02]} 24. axb3 {[%clk 0:02:02]}  Nxb3 {[%clk 0:02:01]} 25. f5 {[%clk 0:01:55]}  g5 {[%clk 0:01:45]} 26. Rxa6 {[%clk 0:01:44]}  Rxd5 {[%clk 0:01:44]} 27. Ra3 {[%clk 0:01:23]}  Qc2 {[%clk 0:01:39]} 28. Re1 {[%clk 0:01:22]}  Re5 {[%clk 0:01:37]} 29. Ra7 {[%clk 0:01:13]}  Rxe4 {[%clk 0:01:33]} 30. Rxe7 {[%clk 0:01:11]}  Rxe1+ {[%clk 0:01:25]} 31. Kh2 {[%clk 0:01:11]}  Rh1+ {[%clk 0:01:24]} 32. Kxh1 {[%clk 0:01:11]}  Qc1+ {[%clk 0:01:24]} 33. Kh2 {[%clk 0:01:09]}  Qf4+ {[%clk 0:01:14]} 34. Kg1 {[%clk 0:01:09]}  Qe3+ {[%clk 0:01:10]} 35. Kh1 {[%clk 0:01:08]}  Qc1+ {[%clk 0:01:08]} 36. Kh2 {[%clk 0:01:07]}  Qf4+ {[%clk 0:01:07]} 37. Kg1 {[%clk 0:01:06]}  Qc1+ {[%clk 0:01:06]} 38. Kh2 {[%clk 0:01:06]} 1/2-1/2


[Site "https://www.chess.com"]

[Event "Titled Tuesday Blitz March 14 Early 2023"]
[White "littlepillow2010"]
[Black "Loiacono, Antonio"]
[BlackFideId "895415"]
[WhiteElo "2381"]
[BlackElo "2257"]
[Result "1-0"]
[Round "06"]
[TimeControl "180+2"]
[Date "2023.03.14"]
[WhiteClock "0:00:02"]
[BlackClock "0:00:04"]

1. e4 {[%clk 0:03:00]}  e5 {[%clk 0:02:59]} 2. Nf3 {[%clk 0:02:59]}  Nc6 {[%clk 0:03:00]} 3. Bb5 {[%clk 0:02:59]}  a6 {[%clk 0:03:00]} 4. Ba4 {[%clk 0:03:00]}  g6 {[%clk 0:02:59]} 5. O-O {[%clk 0:02:57]}  Bg7 {[%clk 0:02:59]} 6. c3 {[%clk 0:02:57]}  Nge7 {[%clk 0:02:59]} 7. d4 {[%clk 0:02:56]}  exd4 {[%clk 0:03:00]} 8. cxd4 {[%clk 0:02:57]}  b5 {[%clk 0:02:59]} 9. Bc2 {[%clk 0:02:51]}  d5 {[%clk 0:02:59]} 10. Nc3 {[%clk 0:02:46]}  O-O {[%clk 0:02:54]} 11. exd5 {[%clk 0:02:43]}  Nxd5 {[%clk 0:02:43]} 12. Bg5 {[%clk 0:02:33]}  Qd7 {[%clk 0:02:29]} 13. Be4 {[%clk 0:02:17]}  Nxc3 {[%clk 0:02:23]} 14. bxc3 {[%clk 0:02:17]}  Bb7 {[%clk 0:02:01]} 15. Re1 {[%clk 0:02:13]}  Rfe8 {[%clk 0:01:53]} 16. Qc2 {[%clk 0:01:54]}  Na5 {[%clk 0:01:43]} 17. Bxb7 {[%clk 0:01:42]}  Nxb7 {[%clk 0:01:44]} 18. Rxe8+ {[%clk 0:01:09]}  Rxe8 {[%clk 0:01:43]} 19. Re1 {[%clk 0:01:09]}  Rxe1+ {[%clk 0:01:36]} 20. Nxe1 {[%clk 0:01:10]}  Nd6 {[%clk 0:01:34]} 21. Nd3 {[%clk 0:01:03]}  Qf5 {[%clk 0:01:32]} 22. Be3 {[%clk 0:01:01]}  a5 {[%clk 0:01:25]} 23. Qe2 {[%clk 0:00:47]}  h5 {[%clk 0:01:21]} 24. h3 {[%clk 0:00:47]}  Qd5 {[%clk 0:01:07]} 25. Bf4 {[%clk 0:00:38]}  Ne4 {[%clk 0:00:41]} 26. Bxc7 {[%clk 0:00:27]}  Nxc3 {[%clk 0:00:35]} 27. Qe8+ {[%clk 0:00:27]}  Bf8 {[%clk 0:00:26]} 28. Bxa5 {[%clk 0:00:19]}  Ne4 {[%clk 0:00:14]} 29. Bb4 {[%clk 0:00:14]}  Nd6 {[%clk 0:00:14]} 30. Bxd6 {[%clk 0:00:13]}  Qxd6 {[%clk 0:00:15]} 31. Ne5 {[%clk 0:00:13]}  Qd5 {[%clk 0:00:15]} 32. Nd7 {[%clk 0:00:10]}  Qd6 {[%clk 0:00:09]} 33. Kf1 {[%clk 0:00:09]}  Kg7 {[%clk 0:00:09]} 34. Qxf8+ {[%clk 0:00:09]}  Qxf8 {[%clk 0:00:10]} 35. Nxf8 {[%clk 0:00:09]}  Kxf8 {[%clk 0:00:11]} 36. Ke2 {[%clk 0:00:10]}  Ke7 {[%clk 0:00:12]} 37. Kd3 {[%clk 0:00:11]}  Kd6 {[%clk 0:00:13]} 38. Ke4 {[%clk 0:00:11]}  f5+ {[%clk 0:00:11]} 39. Ke3 {[%clk 0:00:07]}  Kd5 {[%clk 0:00:10]} 40. Kd3 {[%clk 0:00:04]}  h4 {[%clk 0:00:09]} 41. g3 {[%clk 0:00:03]}  g5 {[%clk 0:00:03]} 42. gxh4 {[%clk 0:00:02]}  gxh4 {[%clk 0:00:04]} 43. Ke3 {[%clk 0:00:02]} 1-0


[Site "https://www.chess.com"]